bitfinex-derivatives/quotes_ETHF0:USTF0_20250903
["timestamp","ask_amount","ask_price","bid_price","bid_amount"]
[1756863917769,3.3944,4292.0,4291.9,0.7466]
[1756863918072,0.236,4292.3,4292.0,0.1248]
[1756863918374,0.4226,4292.3,4292.2,1.86008458]
[1756863918768,0.1866,4292.3,4292.2,1.86008458]
[1756863919474,0.4898,4292.3,4292.2,0.5313]
[1756863922680,0.3732,4292.3,4292.2,0.7449]
[1756863922882,0.3732,4291.8,4291.7,0.5313]
[1756863923181,3.581,4291.8,4291.7,0.7449]
[1756863925580,3.581,4291.8,4291.7,1.86008458]
[1756863926180,3.2078,4291.8,4291.7,1.86008458]
[1756863927182,3.4438,4292.4,4292.0,0.5524]
[1756863927383,3.4438,4292.4,4292.3,1.86008458]
[1756863927782,3.2078,4292.4,4292.3,1.86008458]
[1756863928179,3.3942,4292.4,4292.3,1.86008458]
[1756863928385,3.2078,4292.4,4292.3,1.86008458]
[1756863930186,3.3942,4292.4,4292.3,0.7449]
[1756863932686,3.2078,4292.4,4292.3,0.7449]
[1756863933579,0.236,4292.9,4292.4,0.3173]
[1756863933782,0.236,4292.9,4292.1,0.236]
[1756863933783,0.4224,4292.9,4292.8,0.7449]
[1756863933988,0.1864,4292.9,4292.8,0.7449]
[1756863934484,0.236,4293.0,4292.8,0.7449]
[1756863934682,3.4438,4293.1,4292.9,0.3173]
[1756863934880,3.6302,4293.1,4293.0,0.4276]
[1756863935083,0.3728,4292.5,4292.4,1.32918458]
[1756863935386,0.3728,4292.5,4292.4,0.214]
[1756863935785,3.5806,4292.5,4292.4,0.5313]
[1756863935986,3.6971,4292.5,4292.4,0.3173]
[1756863939189,3.6971,4292.5,4292.4,0.5313]
[1756863939485,3.5806,4292.5,4292.4,0.5313]
[1756863939693,3.5806,4292.5,4292.1,0.3173]
[1756863939694,0.4893,4292.2,4292.1,0.3173]
[1756863942687,0.3714,4291.9,4291.8,0.3114]
[1756863942892,3.6952,4291.9,4291.8,0.3114]
[1756863944292,3.6952,4291.9,4291.8,0.3114]
[1756863947997,3.6952,4291.9,4291.8,0.5119]
[1756863949193,3.5792,4291.9,4291.8,0.5119]
[1756863949888,3.6952,4291.9,4291.8,0.5119]
[1756863950588,3.5792,4291.9,4291.8,0.5119]
[1756863951096,3.5792,4291.9,4291.8,0.7235]
[1756863951393,3.2078,4291.9,4291.8,0.7235]
[1756863951794,3.5792,4291.9,4291.8,0.7235]
[1756863952001,3.5792,4291.9,4291.8,1.83868458]
[1756863954999,3.2078,4291.9,4291.8,1.83868458]
[1756863961216,3.2078,4291.9,4291.8,2.07468458]
[1756863962112,0.3714,4292.9,4292.8,0.7235]
[1756863962415,3.2078,4293.4,4293.0,0.1181]
[1756863962416,3.4438,4293.4,4293.0,0.1181]
[1756863962718,3.4438,4293.4,4293.1,1.83868458]
[1756863962719,0.3714,4293.2,4293.1,1.83868458]
[1756863963817,3.2078,4293.4,4293.2,0.3114]
[1756863964021,3.3935,4293.4,4293.3,0.7235]
[1756863965023,3.2078,4293.4,4293.3,0.7235]
[1756863965223,3.2078,4294.0,4293.4,0.3114]
[1756863965424,3.6952,4294.0,4293.6,1.11518458]
[1756863965725,0.4874,4293.7,4293.6,0.3114]
[1756863966121,0.4874,4293.7,4293.3,1.11518458]
[1756863966424,0.4864,4293.3,4293.2,0.5474]
[1756863966615,0.4864,4293.3,4293.2,0.3114]
[1756863966815,0.4864,4293.3,4293.2,0.5119]
[1756863967018,0.3706,4293.3,4293.2,1.62708458]
[1756863967515,0.3706,4293.3,4293.2,1.83868458]
[1756863967711,0.236,4293.7,4293.2,1.52728458]
[1756863967915,3.5784,4293.9,4293.8,0.7235]
[1756863968113,3.3931,4293.9,4293.8,0.7235]
[1756863968316,0.236,4294.4,4293.8,0.7235]
[1756863968522,0.3706,4294.3,4294.2,1.62708458]
[1756863968827,0.1853,4294.3,4294.2,1.83868458]
[1756863969020,3.5784,4294.7,4294.6,0.2005]
[1756863969219,3.5784,4294.7,4294.6,1.83868458]
[1756863970320,3.5784,4294.7,4294.3,1.11518458]
[1756863970517,0.1853,4294.4,4294.3,1.31568458]
[1756863970718,0.1853,4294.4,4294.3,1.52728458]
[1756863970919,3.2078,4294.7,4294.3,1.52728458]
[1756863971117,0.1853,4294.5,4294.4,0.3114]
[1756863971318,0.1853,4294.5,4294.4,0.7235]
[1756863972814,3.2078,4294.7,4294.6,0.1946]
[1756863973019,3.2078,4294.7,4294.6,1.83678458]
[1756863973926,1.11518458,4295.6,4294.7,0.3192]
[1756863973927,3.4438,4295.2,4294.7,0.3192]
[1756863974221,3.58,4295.2,4295.1,1.62898458]
[1756863974418,3.58,4295.2,4295.1,1.83678458]
[1756863974618,3.58,4295.2,4295.1,1.62898458]
[1756863974914,3.6963,4295.2,4295.1,1.62898458]
[1756863975121,3.58,4295.2,4294.8,1.11518458]
[1756863975315,0.4885,4295.0,4294.9,0.3192]
[1756863975722,0.4885,4295.0,4294.9,0.5138]
[1756863976330,0.18917982,4296.0,4295.9,0.7216]
[1756863976531,0.37527982,4296.0,4295.9,1.83678458]
[1756863976828,3.69937982,4296.0,4295.9,1.43438458]
[1756863977026,0.3722,4295.3,4295.1,0.5532]
[1756863977223,0.3722,4295.3,4294.5,0.1286]
[1756863977224,0.4885,4295.2,4294.6,0.3192]
[1756863977418,0.4885,4295.2,4294.6,1.11518458]
[1756863977623,3.3939,4294.8,4294.7,0.1946]
[1756863977816,3.58,4294.8,4294.7,0.5138]
[1756863979327,3.58,4294.8,4293.8,3.2078]
[1756863979328,3.6963,4294.8,4293.8,3.2078]
[1756863979527,0.3722,4293.9,4293.8,1.87450251]
[1756863979727,0.3722,4293.9,4293.8,2.11050251]
[1756863980124,0.3722,4293.9,4293.8,1.87450251]
[1756863980325,0.3722,4293.9,4293.8,2.08230251]
[1756863980628,3.2078,4294.2,4294.1,0.7216]
[1756863980930,3.3939,4294.2,4294.1,0.7216]
[1756863981324,3.6963,4294.2,4294.1,0.3192]
[1756863981629,3.58,4294.2,4294.1,0.7216]
[1756863983130,3.58,4294.2,4293.7,0.3192]
[1756863983131,0.1163,4294.1,4293.7,0.3192]
[1756863983324,0.3722,4293.1,4293.0,0.4024]
[1756863983630,0.3722,4293.1,4292.7,1.36070251]
[1756863983631,0.1163,4293.0,4292.7,1.36070251]
[1756863983835,3.6963,4292.8,4292.7,1.67990251]
[1756863984136,3.58,4292.8,4292.7,1.87450251]
[1756863985530,3.58,4292.8,4292.7,0.5138]
[1756863985730,3.6963,4292.8,4292.3,0.236]
[1756863985936,0.1861,4292.4,4292.3,0.9576]
[1756863986136,3.2078,4292.8,4292.4,0.3192]
[1756863986440,3.2078,4292.8,4292.7,0.7216]
[1756863986632,3.3939,4292.8,4292.7,0.7216]
[1756863986929,3.2078,4293.3,4292.7,5.13919509]
[1756863987134,0.6082,4293.6,4293.5,0.5138]
[1756863987829,0.7245,4293.6,4292.6,0.3192]
[1756863988137,0.7245,4293.6,4292.7,0.3192]
[1756863988333,3.2078,4293.3,4292.7,0.23293]
[1756863988532,3.58,4293.3,4293.2,0.5138]
[1756863990533,3.58,4293.3,4293.2,0.7216]
[1756863995836,3.58,4293.3,4293.2,0.3192]
[1756863996143,3.6963,4293.3,4293.2,0.3192]
[1756863998541,3.58,4293.3,4293.2,0.7216]
[1756863998841,3.58,4293.3,4293.2,0.3192]
[1756863998842,3.6963,4293.3,4293.2,0.3192]
[1756863999344,3.58,4293.3,4293.2,0.5138]
[1756863999838,3.6963,4293.3,4292.6,4.335]
[1756864000043,0.18571067,4294.6,4291.5,2.64317669]
[1756864000044,0.1163,4292.7,4292.1,0.3192]
[1756864000242,0.3722,4291.7,4291.6,0.3192]
[1756864000442,3.6963,4291.7,4291.6,0.3192]
[1756864000742,3.9323,4291.7,4291.6,0.3192]
[1756864001341,3.816,4291.7,4291.6,0.5138]
[1756864001742,3.58,4291.7,4291.6,0.5138]
[1756864002341,3.6958,4291.7,4291.6,0.3192]
[1756864003446,3.6958,4291.7,4291.1,0.302]
[1756864004838,3.58,4291.7,4291.1,0.302]
[1756864005149,0.3704,4291.2,4291.1,0.2047]
[1756864005348,0.3704,4291.2,4291.1,0.5067]
[1756864006050,0.4862,4291.2,4291.1,0.5067]
[1756864008156,0.3704,4291.2,4291.1,0.7134]
[1756864013261,0.3704,4291.2,4291.1,0.5067]
[1756864013452,0.3704,4291.2,4291.1,0.7134]
[1756864014254,0.4862,4291.2,4291.1,0.302]
[1756864014449,0.3704,4290.7,4290.6,0.2047]
[1756864014649,0.3704,4290.7,4290.6,0.5067]
[1756864016656,0.4862,4290.7,4290.6,0.302]
[1756864017961,0.3704,4290.7,4290.6,0.5067]
[1756864019459,0.3704,4290.7,4290.6,0.7134]
[1756864019855,0.4862,4290.7,4290.6,0.302]
[1756864020563,0.4862,4290.7,4290.1,0.302]
[1756864021058,3.694,4290.7,4290.1,0.302]
[1756864022862,3.694,4290.7,4290.6,0.2047]
[1756864023065,3.5782,4290.7,4290.6,0.5067]
[1756864023768,3.2078,4291.2,4290.6,0.7134]
[1756864023967,3.5088,4290.7,4290.6,0.5067]
[1756864024263,3.694,4290.7,4290.6,0.302]
[1756864025077,3.5782,4290.7,4290.6,0.5067]
[1756864025876,3.5782,4290.7,4290.6,0.302]
[1756864026077,3.694,4290.7,4290.6,0.302]
[1756864027171,3.694,4290.7,4289.5,0.1286]
[1756864027373,3.3245,4289.8,4289.1,0.302]
[1756864027575,0.1868,4289.2,4289.1,0.7134]
[1756864027876,3.5814,4289.2,4289.1,0.7134]
[1756864028473,3.6981,4289.2,4289.1,0.302]
[1756864028870,3.5814,4289.2,4289.1,0.5067]
[1756864030182,3.5814,4289.2,4289.1,0.7134]
[1756864030574,3.5814,4289.2,4289.1,0.5067]
[1756864033183,3.6983,4289.2,4288.5,0.1172]
[1756864033381,0.1169,4289.1,4288.7,0.3151]
[1756864033678,0.3742,4288.8,4288.7,0.5177]
[1756864033983,0.3742,4288.8,4288.7,0.7211]
[1756864038780,0.4911,4288.8,4288.7,0.5177]
[1756864039384,0.3742,4288.8,4288.7,0.5177]
[1756864040284,0.4911,4288.8,4288.7,0.3151]
[1756864040485,0.3742,4288.8,4288.7,0.7211]
[1756864043487,0.4911,4288.8,4288.7,0.3151]
[1756864044196,0.4911,4288.8,4288.1,0.3151]
[1756864044386,0.3742,4288.2,4288.1,0.5177]
[1756864044690,0.4911,4288.2,4288.1,0.5177]
[1756864045093,0.3742,4288.2,4288.1,0.5177]
[1756864046993,0.4911,4288.2,4288.1,0.3151]
[1756864047488,0.3742,4288.2,4288.1,0.5177]
[1756864048189,1.09107113,4288.2,4288.1,0.5177]
[1756864048796,0.97417113,4288.2,4288.1,0.5177]
[1756864049494,0.3742,4288.2,4288.1,0.5177]
[1756864049698,0.97398807,4288.2,4288.1,0.5177]
[1756864049995,0.97398807,4288.2,4288.1,0.7211]
[1756864050293,0.3742,4288.2,4288.1,0.406]
[1756864050895,0.3742,4288.2,4288.1,0.7211]
[1756864055606,0.1871,4288.2,4288.1,0.7211]
[1756864056005,0.236,4288.3,4288.1,0.7211]
[1756864056205,0.236,4288.3,4288.2,0.7211]
[1756864056407,2.44530095,4288.3,4288.2,0.3151]
[1756864059101,0.1871,4287.7,4287.6,0.7211]
[1756864059306,3.3949,4287.7,4287.6,0.7211]
[1756864060907,3.582,4287.7,4287.6,0.7211]
[1756864061810,3.3949,4287.7,4287.6,0.7211]
[1756864062003,3.3949,4287.7,4287.6,1.83826476]
[1756864063007,3.3949,4287.7,4287.6,0.7211]
[1756864063907,3.5821,4287.7,4287.6,0.7211]
[1756864065004,3.5821,4287.7,4287.3,0.00816]
[1756864065005,0.117,4287.4,4287.3,0.00816]
[1756864065210,1.11716476,4287.0,4285.8,3.2078]
[1756864065407,0.4914,4286.0,4285.9,0.3115]
[1756864065614,0.4914,4286.0,4285.6,2.00669677]
[1756864065615,0.117,4285.9,4285.6,2.31819677]
[1756864065803,0.4914,4285.7,4285.6,2.31819677]
[1756864066510,1.60856476,4285.7,4285.6,2.31819677]
[1756864067109,1.49156476,4285.7,4285.6,2.52459677]
[1756864067312,6.67803846,4285.7,4285.6,2.00669677]
[1756864067909,6.44469845,4285.7,4285.6,2.00669677]
[1756864068112,6.44569845,4285.7,4285.6,2.00669677]
[1756864068808,0.97453369,4285.7,4285.6,2.52459677]
[1756864069008,1.21153369,4285.7,4285.6,2.52459677]
[1756864069210,0.97453369,4285.7,4285.6,2.52459677]
[1756864069410,1.72856476,4285.7,4285.6,2.52459677]
[1756864070006,1.84556476,4285.7,4285.6,2.31819677]
[1756864071714,1.72856476,4285.7,4285.6,2.52459677]
[1756864071909,3.2078,4286.1,4285.6,2.73029677]
[1756864072115,1.54136476,4286.0,4285.9,0.7236]
[1756864073118,3.2078,4286.1,4286.0,0.4355]
[1756864073311,3.2078,4286.1,4286.0,0.8476]
[1756864073618,3.4448,4286.1,4286.0,0.8476]
[1756864073820,3.2078,4286.1,4286.0,0.8476]
[1756864074612,3.2078,4286.1,4286.0,4.8476]
[1756864074812,3.2078,4286.6,4286.5,0.8476]
[1756864075019,3.4448,4286.6,4286.5,0.8476]
[1756864075714,3.2078,4286.6,4286.5,0.8476]
[1756864078423,3.395,4286.6,4286.5,0.8476]
[1756864078815,3.2078,4286.6,4286.5,0.8476]
[1756864080632,0.3536,4286.8,4286.7,0.4121]
[1756864080822,0.1166,4286.8,4286.7,0.7236]
[1756864083018,4.845,4286.8,4286.0,0.124]
[1756864083325,0.3744,4286.2,4285.6,2.00669677]
[1756864083525,0.3744,4285.7,4285.6,2.41879677]
[1756864083913,0.3744,4285.7,4285.6,2.73029677]
[1756864084314,0.4914,4285.7,4285.6,2.52459677]
[1756864085121,0.4914,4285.7,4285.6,2.31819677]
[1756864085322,0.4914,4285.7,4285.6,2.00669677]
[1756864086125,0.4914,4285.7,4285.6,2.31819677]
[1756864086426,0.3744,4285.7,4285.6,2.52459677]
[1756864087024,0.3744,4285.7,4285.6,2.73029677]
[1756864088429,0.6114,4285.7,4285.6,2.73029677]
[1756864089022,0.4242,4285.7,4285.6,2.73029677]
[1756864089826,0.1872,4285.7,4285.6,2.73029677]
[1756864090025,0.4242,4285.7,4285.6,2.73029677]
[1756864090422,0.7312,4285.7,4285.6,2.31819677]
[1756864092533,0.7312,4285.7,4285.6,2.51979677]
[1756864092534,0.6131,4285.7,4285.6,2.51979677]
[1756864094130,0.7304,4285.7,4285.6,2.51979677]
[1756864094635,0.6131,4285.7,4285.6,2.51979677]
[1756864095533,0.6131,4285.7,4285.6,2.71469677]
[1756864098247,0.4242,4285.7,4285.6,2.71469677]
[1756864098448,0.612,4285.7,4285.6,2.71469677]
[1756864099443,1.97842049,4285.7,4285.6,2.71469677]
[1756864099648,1.60342049,4285.7,4285.6,2.71469677]
[1756864099849,0.237,4285.7,4285.6,2.40319677]
[1756864100548,0.237,4285.7,4285.6,2.69509677]
[1756864102541,3.3244,4285.9,4285.8,0.3965]
[1756864102737,3.5614,4285.9,4285.8,0.6884]
[1756864103752,3.3244,4285.9,4285.8,0.6884]
[1756864104152,3.3244,4285.9,4285.8,6.52515048]
[1756864104346,0.1166,4285.9,4285.8,6.52515048]
[1756864105950,0.1166,4285.9,4285.8,6.29182049]
[1756864106547,0.1166,4285.9,4285.8,6.52515048]
[1756864106851,0.1166,4285.9,4285.8,6.29182049]
[1756864113056,3.2078,4286.4,4286.0,0.1185]
[1756864113258,2.8841,4286.4,4286.3,2.05482049]
[1756864113558,2.8841,4286.4,4286.3,2.29082049]
[1756864116057,3.0982,4286.4,4286.3,2.29082049]
[1756864116256,2.8841,4286.4,4286.3,2.29082049]
[1756864117060,2.8841,4286.4,4286.3,0.9244]
[1756864118863,3.9396,4287.0,4286.9,0.2016]
[1756864119064,3.9396,4287.0,4286.9,0.4935]
[1756864121661,3.9396,4287.0,4286.9,0.6884]
[1756864123974,0.3134,4286.9,4286.1,0.3046]
[1756864124266,0.724,4286.2,4286.1,0.5022]
[1756864124463,0.3134,4286.1,4285.7,0.3046]
[1756864124666,0.724,4285.8,4285.7,0.7108]
[1756864125563,0.724,4285.8,4285.7,0.5022]
[1756864128160,3.4211,4286.5,4286.4,0.4062]
[1756864128472,3.2078,4286.5,4286.4,0.7108]
[1756864131465,3.4211,4286.5,4286.4,0.7108]
[1756864131673,3.9318,4286.5,4286.4,0.7108]
[1756864132962,0.3134,4287.3,4286.5,0.1189]
[1756864133165,3.4211,4287.5,4287.4,0.4062]
[1756864133364,3.6184,4287.5,4287.4,0.7108]
[1756864133960,3.2078,4288.0,4287.5,0.3046]
[1756864134161,3.4211,4288.0,4287.9,2.07722049]
[1756864134358,3.4211,4288.0,4287.9,0.7108]
[1756864134359,3.9318,4288.0,4287.9,0.7108]
[1756864134970,3.9318,4288.0,4287.9,0.5022]
[1756864135170,0.724,4287.3,4287.2,0.3046]
[1756864135472,0.724,4287.2,4287.1,0.5132]
[1756864135663,0.724,4287.2,4287.1,0.7108]
[1756864138475,0.2133,4287.2,4287.1,0.7108]
[1756864138775,0.2133,4287.3,4287.2,0.7108]
[1756864138977,3.2078,4288.0,4287.3,0.3046]
[1756864139273,3.2078,4288.0,4287.9,0.7108]
[1756864139274,3.4211,4288.0,4287.9,0.7108]
[1756864139474,3.4211,4288.0,4287.9,0.9478]
[1756864139775,3.6184,4288.0,4287.9,0.9478]
[1756864139973,3.9318,4288.0,4287.9,0.7392]
[1756864140772,3.2078,4288.0,4287.9,0.9478]
[1756864141173,3.6184,4288.0,4287.9,0.9478]
[1756864142775,3.9318,4288.0,4287.9,0.5022]
[1756864142976,3.6184,4288.0,4287.9,0.9478]
[1756864145267,3.9318,4288.0,4287.9,0.9478]
[1756864147166,3.6184,4288.0,4287.9,0.9478]
[1756864147368,0.4106,4288.0,4287.9,0.9478]
[1756864148272,3.2078,4288.5,4288.0,0.4235]
[1756864148479,3.6184,4288.5,4288.4,0.7108]
[1756864149480,0.4106,4288.5,4288.4,0.7108]
[1756864149674,0.2133,4288.5,4288.4,0.7108]
[1756864150564,0.724,4288.5,4288.4,0.7108]
[1756864151675,0.201,4288.5,4288.4,0.4062]
[1756864151881,0.7099,4288.5,4288.4,0.4062]
[1756864152278,0.7099,4288.5,4288.4,0.7003]
[1756864152773,3.2078,4289.0,4288.4,0.7003]
[1756864152985,0.2153,4288.6,4288.5,0.4227]
[1756864153180,0.7099,4288.6,4288.5,0.7168]
[1756864153377,0.4163,4288.6,4287.8,0.2941]
[1756864153676,0.4163,4288.0,4287.9,0.9528]
[1756864154073,0.201,4288.0,4287.9,0.9528]
[1756864154679,0.4163,4288.0,4287.9,0.9528]
[1756864155077,0.4163,4288.0,4287.9,0.5071]
[1756864155078,0.7099,4288.0,4287.9,0.5071]
[1756864155383,0.7099,4288.0,4287.9,0.7441]
[1756864157286,0.4163,4288.0,4287.9,0.9538]
[1756864157984,0.7099,4288.0,4287.9,0.9538]
[1756864159186,0.7099,4288.0,4287.9,0.7168]
[1756864159386,0.7099,4288.0,4287.9,0.9538]
[1756864159886,0.4163,4288.0,4287.9,0.9538]
[1756864160782,0.201,4288.0,4287.9,0.9538]
[1756864160983,0.2936,4288.3,4287.9,0.6597]
[1756864161183,0.7099,4288.3,4288.2,0.4227]
[1756864161376,0.7099,4288.3,4288.2,0.9538]
[1756864161576,0.7099,4288.3,4288.2,2.0706886]
[1756864167188,0.7099,4288.3,4288.2,0.237]
[1756864167385,0.4163,4288.3,4287.9,0.236]
[1756864167786,0.4163,4288.3,4287.7,0.236]
[1756864168184,0.64951,4288.3,4287.7,0.236]
[1756864168586,0.4163,4288.3,4287.7,0.236]
[1756864170091,0.4163,4288.3,4287.9,1.1168886]
[1756864170492,3.2078,4288.5,4288.2,1.1168886]
[1756864170693,3.2078,4288.5,4288.3,0.236]
[1756864171694,3.2078,4288.5,4288.4,0.7168]
[1756864172893,3.2078,4288.5,4288.4,5.0518]
[1756864175204,3.2078,4288.5,4288.4,0.7168]
[1756864177406,3.9177,4288.5,4288.4,0.7168]
[1756864177909,3.9177,4288.5,4288.4,0.9528]
[1756864182598,3.9177,4288.5,4288.4,0.236]
[1756864182804,3.9177,4288.5,4287.8,3.2078]
[1756864182805,0.4151,4287.9,4287.8,3.7275]
[1756864182999,0.7257,4287.9,4287.8,1.8725886]
[1756864183198,0.7257,4287.9,4287.8,2.0766886]
[1756864183603,0.4151,4287.9,4287.8,2.0766886]
[1756864184005,0.2049,4287.9,4287.8,2.0766886]
[1756864184205,3.9335,4288.5,4288.4,0.2062]
[1756864184409,3.6229,4288.5,4288.4,1.8406886]
[1756864185017,3.9335,4288.5,4288.4,1.8406886]
[1756864186514,3.6229,4288.5,4288.4,1.8406886]
[1756864187015,3.9335,4288.5,4288.4,1.8406886]
[1756864190009,3.6229,4288.5,4288.4,1.8406886]
[1756864192417,3.9335,4288.5,4288.4,1.8406886]
[1756864198407,3.6229,4288.5,4288.3,4.335]
[1756864198611,0.7257,4288.4,4288.3,4.571]
[1756864200317,0.7257,4288.4,4288.3,4.8845]
[1756864200524,0.7257,4288.4,4288.3,4.571]
[1756864200815,0.7257,4288.4,4288.3,5.0907]
[1756864201017,3.2078,4288.5,4288.3,5.2948]
[1756864201215,3.2078,4289.0,4288.5,0.1285]
[1756864201417,0.7257,4289.0,4288.9,1.8406886]
[1756864201916,0.7257,4289.0,4288.6,0.236]
[1756864202117,0.7257,4288.1,4288.0,4.6485]
[1756864202323,0.7257,4288.1,4288.0,0.7557]
[1756864202523,0.7257,4288.1,4288.0,2.0766886]
[1756864204519,0.3106,4288.0,4287.8,0.3135]
[1756864204719,0.7257,4288.0,4287.9,0.236]
[1756864205120,3.2078,4288.2,4287.9,0.9598]
[1756864205321,3.4127,4288.2,4288.1,1.8406886]
[1756864206021,3.9335,4288.9,4288.8,0.2062]
[1756864206218,4.1695,4288.9,4288.8,0.5197]
[1756864206621,3.9335,4288.9,4288.8,0.5197]
[1756864207334,3.9335,4288.9,4288.8,1.8406886]
[1756864207335,0.4151,4288.9,4288.8,1.8406886]
[1756864207628,0.2049,4288.9,4288.8,1.8406886]
[1756864208334,0.4151,4288.9,4288.8,1.8406886]
[1756864209830,3.2078,4289.4,4288.8,1.5271886]
[1756864210027,3.2078,4289.4,4289.3,1.8406886]
[1756864210429,3.4127,4289.4,4289.3,1.8406886]
[1756864211035,3.6229,4289.4,4289.3,1.8406886]
[1756864211339,3.9335,4289.4,4289.3,0.7238]
[1756864211538,3.6229,4289.4,4289.3,0.7238]
[1756864211738,0.4151,4289.4,4289.3,1.8406886]
[1756864213037,0.7285,4289.4,4289.3,1.8406886]
[1756864213733,0.3134,4289.7,4289.3,1.5271886]
[1756864213934,0.2059,4289.4,4289.3,1.5271886]
[1756864214326,0.2059,4289.4,4289.3,1.8215886]
[1756864214531,0.3134,4289.7,4289.3,1.5271886]
[1756864214732,0.5193,4289.7,4289.6,0.4006]
[1756864215029,0.5193,4289.7,4289.6,0.695]
[1756864215435,0.2059,4289.7,4289.6,1.8118886]
[1756864215643,3.2078,4289.9,4289.6,1.8118886]
[1756864215835,0.2059,4289.8,4289.7,0.695]
[1756864216036,0.731,4289.8,4289.7,0.695]
[1756864217639,0.4176,4289.8,4289.7,0.695]
[1756864218336,0.2059,4289.8,4289.7,0.695]
[1756864218736,0.3134,4290.2,4289.7,0.4006]
[1756864218936,0.3134,4290.2,4289.9,1.1168886]
[1756864219143,0.3134,4290.2,4290.1,0.695]
[1756864219144,0.2059,4290.2,4290.1,0.695]
[1756864219341,3.2078,4290.4,4290.1,0.695]
[1756864219536,3.2078,4290.4,4290.3,1.8118886]
[1756864220336,3.9388,4290.4,4290.3,0.695]
[1756864220736,3.6254,4290.4,4290.3,1.8118886]
[1756864221034,3.4137,4290.4,4290.3,1.8118886]
[1756864222341,3.2078,4290.4,4290.3,1.8118886]
[1756864223441,3.4137,4290.4,4290.3,0.695]
[1756864224042,0.2059,4290.4,4290.3,0.695]
[1756864224434,0.3134,4290.8,4290.3,0.695]
[1756864224629,0.3134,4290.8,4290.2,1.36286548]
[1756864224630,0.731,4291.0,4290.9,0.695]
[1756864225241,0.731,4291.0,4290.9,0.4966]
[1756864225937,0.4176,4291.0,4290.3,0.2944]
[1756864226146,3.2078,4291.1,4290.3,0.695]
[1756864226147,0.2059,4290.4,4290.3,0.695]
[1756864228445,0.3134,4290.7,4290.3,0.4006]
[1756864228644,0.2059,4290.5,4290.4,0.2944]
[1756864228940,0.2059,4290.5,4290.4,0.695]
[1756864229942,0.3134,4291.0,4290.4,0.4006]
[1756864230241,0.731,4291.0,4290.9,0.4966]
[1756864231138,0.731,4291.0,4290.9,0.695]
[1756864231343,0.2059,4291.0,4290.9,1.76346548]
[1756864231645,0.4176,4291.0,4290.9,1.76346548]
[1756864231840,3.2078,4291.6,4290.9,2.05786548]
[1756864232147,3.2078,4292.1,4292.0,0.695]
[1756864232340,3.2078,4292.1,4292.0,2.41476548]
[1756864232550,3.2078,4292.6,4292.0,2.12036548]
[1756864232752,3.6254,4292.6,4292.5,0.695]
[1756864233048,0.731,4292.6,4292.5,0.695]
[1756864233245,0.4176,4292.6,4292.5,0.695]
[1756864233439,0.2059,4292.6,4292.5,0.695]
[1756864234237,3.2078,4293.2,4292.5,0.5215]
[1756864234444,3.6254,4293.2,4293.1,0.2022]
[1756864234637,0.731,4293.2,4293.1,0.695]
[1756864234843,0.4176,4293.2,4293.1,2.05786548]
[1756864235250,0.2059,4293.3,4293.2,0.695]
[1756864235448,0.3134,4293.8,4293.3,0.2944]
[1756864235656,0.731,4293.8,4293.7,0.695]
[1756864236254,0.731,4293.8,4293.7,0.4966]
[1756864237054,0.731,4293.8,4293.7,0.695]
[1756864239257,0.3134,4294.1,4293.7,0.4006]
[1756864239460,0.2059,4294.1,4294.0,2.05786548]
[1756864241751,0.7417,4294.1,4293.5,3.2078]
[1756864241956,0.7417,4294.1,4293.2,1.36286548]
[1756864241957,0.3218,4294.0,4293.2,1.36286548]
[1756864242156,0.7311,4294.0,4293.9,0.1994]
[1756864242352,0.7311,4294.0,4293.9,0.4985]
[1756864243964,0.4093,4294.0,4293.9,2.07536548]
[1756864244466,0.3218,4294.4,4293.9,1.77626548]
[1756864244657,0.7311,4294.4,4294.3,0.7125]
[1756864245059,0.7311,4294.4,4294.3,0.2991]
[1756864245262,0.3218,4294.3,4294.0,0.2991]
[1756864245463,0.7311,4294.1,4294.0,0.4985]
[1756864245763,0.7311,4294.1,4294.0,0.7125]
[1756864245963,0.4093,4294.1,4294.0,0.7125]
[1756864248169,0.1953,4294.1,4294.0,0.7125]
[1756864248369,0.1953,4294.5,4294.4,0.4134]
[1756864248563,0.3218,4294.9,4294.4,1.77626548]
[1756864248866,0.7311,4294.9,4294.8,0.7125]
[1756864249865,0.3218,4294.8,4294.4,1.36286548]
[1756864250166,0.7311,4294.8,4294.7,0.4985]
[1756864250360,0.4093,4294.8,4294.7,0.7125]
[1756864250565,0.1953,4294.8,4294.7,0.7125]
[1756864253069,3.2078,4295.1,4294.8,0.2991]
[1756864253265,3.6171,4295.1,4295.0,0.4134]
[1756864253471,3.6171,4295.1,4295.0,0.7125]
[1756864253667,3.4031,4295.1,4295.0,0.7125]
[1756864253871,0.3218,4295.5,4295.0,0.7125]
[1756864253872,0.3218,4295.5,4295.0,0.5372]
[1756864254067,0.5171,4295.5,4295.4,0.7125]
[1756864254269,0.5171,4295.5,4295.2,1.36286548]
[1756864254270,3.2078,4295.6,4295.5,0.7125]
[1756864254568,3.6171,4295.6,4295.5,0.7125]
[1756864254774,3.9389,4295.6,4295.5,0.7125]
[1756864255069,3.9389,4295.6,4295.2,1.36286548]
[1756864255070,0.4093,4295.3,4295.2,0.6494]
[1756864255268,0.4093,4295.3,4295.2,0.9485]
[1756864255269,0.7311,4295.3,4295.2,0.9485]
[1756864255469,0.7311,4295.3,4295.2,0.7125]
[1756864256876,3.5296,4295.6,4295.3,0.2991]
[1756864257169,0.1953,4295.4,4295.3,0.7125]